[Event "Late-Titled-Tuesday-Blitz-October-24-2023"]
[Site "Chess.com"]
[Date "2023.10.24"]
[Round "4"]
[White "KVAIDAN"]
[Black "cthulhuuu"]
[Result "1-0"]
[WhiteElo "2421"]
[BlackElo "2416"]
[TimeControl "180+1"]
[EndTime "14:38:09 PDT"]
[Termination "KVAIDAN won by resignation"]

1. f4 {[%clk 0:03:00]} 1... d5 {[%clk 0:02:57.7]} 2. Nf3 {[%clk 0:03:00.9]} 2...
Nf6 {[%clk 0:02:54.2]} 3. e3 {[%clk 0:03:01.8]} 3... c5 {[%clk 0:02:53.1]} 4. b3
{[%clk 0:03:01.5]} 4... Nc6 {[%clk 0:02:53.3]} 5. Bb2 {[%clk 0:03:01.9]} 5...
Bg4 {[%clk 0:02:53.2]} 6. Bb5 {[%clk 0:03:02.6]} 6... Qb6 {[%clk 0:02:51.2]} 7.
a4 {[%clk 0:02:58.1]} 7... a6 {[%clk 0:02:51.1]} 8. a5 {[%clk 0:02:52]} 8... Qc7
{[%clk 0:01:55.9]} 9. Bxc6+ {[%clk 0:02:50.1]} 9... Qxc6 {[%clk 0:01:55.7]} 10.
O-O {[%clk 0:02:49.4]} 10... e6 {[%clk 0:01:53.8]} 11. Qe1 {[%clk 0:02:43.9]}
11... Bxf3 {[%clk 0:01:53.8]} 12. Rxf3 {[%clk 0:02:44]} 12... Be7 {[%clk
0:01:54.2]} 13. Rg3 {[%clk 0:02:44.5]} 13... g6 {[%clk 0:01:49.4]} 14. Nc3
{[%clk 0:02:41.6]} 14... O-O-O {[%clk 0:01:49.3]} 15. Na4 {[%clk 0:02:41.3]}
15... d4 {[%clk 0:01:35.2]} 16. exd4 {[%clk 0:02:38.8]} 16... cxd4 {[%clk
0:01:35.2]} 17. Qe5 {[%clk 0:02:39.1]} 17... Qd6 {[%clk 0:01:24]} 18. Nb6+
{[%clk 0:02:28.4]} 18... Kb8 {[%clk 0:01:15.7]} 19. Bxd4 {[%clk 0:02:28.2]}
19... Ne4 {[%clk 0:00:43.9]} 20. Rd3 {[%clk 0:02:08]} 20... f6 {[%clk
0:00:28.4]} 21. Qxe4 {[%clk 0:02:07.2]} 21... e5 {[%clk 0:00:04.4]} 22. Bxe5
{[%clk 0:02:02]} 22... fxe5 {[%clk 0:00:01.8]} 23. Rxd6 {[%clk 0:02:02.4]} 23...
Bxd6 {[%clk 0:00:02.3]} 24. fxe5 {[%clk 0:02:02.7]} 24... Rhe8 {[%clk
0:00:02.8]} 25. d4 {[%clk 0:02:02.9]} 25... Bb4 {[%clk 0:00:03.1]} 26. c4 {[%clk
0:02:01.6]} 26... Bc3 {[%clk 0:00:03.2]} 27. Rd1 {[%clk 0:02:01.2]} 27... Bxa5
{[%clk 0:00:01.5]} 28. Nd5 {[%clk 0:01:59]} 28... Bc7 {[%clk 0:00:02.4]} 29. Nf6
{[%clk 0:01:58.3]} 29... Re6 {[%clk 0:00:02.6]} 30. Ng4 {[%clk 0:01:54.2]} 30...
h5 {[%clk 0:00:02.1]} 31. Ne3 {[%clk 0:01:54.3]} 31... Rxe5 {[%clk 0:00:02.3]}
32. dxe5 {[%clk 0:01:53.3]} 32... Bb6 {[%clk 0:00:02.4]} 33. Rxd8+ {[%clk
0:01:51.6]} 1-0

[Event "Late-Titled-Tuesday-Blitz-October-24-2023"]
[Site "Chess.com"]
[Date "2023.10.24"]
[Round "4"]
[White "filipluczak05"]
[Black "marik_spb"]
[Result "1-0"]
[WhiteElo "2612"]
[BlackElo "2388"]
[TimeControl "180+1"]
[EndTime "14:38:10 PDT"]
[Termination "filipluczak05 won by resignation"]

1. d4 {[%clk 0:02:55.9]} 1... Nf6 {[%clk 0:02:58.6]} 2. Nc3 {[%clk 0:02:55.5]}
2... d5 {[%clk 0:02:56.8]} 3. Bf4 {[%clk 0:02:55.1]} 3... c5 {[%clk 0:02:55.1]}
4. e3 {[%clk 0:02:51.2]} 4... e6 {[%clk 0:02:49.5]} 5. Nb5 {[%clk 0:02:42.6]}
5... Na6 {[%clk 0:02:49.3]} 6. c3 {[%clk 0:02:41.7]} 6... Qb6 {[%clk 0:02:41.8]}
7. a4 {[%clk 0:02:36.4]} 7... c4 {[%clk 0:02:25.5]} 8. Nf3 {[%clk 0:02:29.5]}
8... Bd7 {[%clk 0:02:25.2]} 9. b4 {[%clk 0:02:22.2]} 9... Bxb5 {[%clk
0:02:21.3]} 10. axb5 {[%clk 0:02:20.8]} 10... Qxb5 {[%clk 0:02:22.2]} 11. Ra5
{[%clk 0:02:16.6]} 11... Qb6 {[%clk 0:02:19.4]} 12. Qa4+ {[%clk 0:02:14]} 12...
Nd7 {[%clk 0:02:07.1]} 13. Ne5 {[%clk 0:02:09.3]} 13... Rd8 {[%clk 0:02:06.6]}
14. Rb5 {[%clk 0:02:05]} 14... Qc7 {[%clk 0:01:49.6]} 15. Ng6 {[%clk 0:02:03]}
15... Qc6 {[%clk 0:01:30.1]} 16. Nxh8 {[%clk 0:01:59.9]} 16... Nb6 {[%clk
0:01:27.2]} 17. Qa5 {[%clk 0:01:47.7]} 17... Be7 {[%clk 0:01:22.2]} 18. Be2
{[%clk 0:01:41.5]} 18... Kf8 {[%clk 0:01:11.5]} 19. O-O {[%clk 0:01:39.4]} 19...
Kg8 {[%clk 0:01:10.7]} 20. Nxf7 {[%clk 0:01:38.1]} 20... Kxf7 {[%clk 0:01:11.6]}
21. e4 {[%clk 0:01:33]} 21... Kg8 {[%clk 0:00:56.1]} 22. exd5 {[%clk 0:01:28.1]}
22... Nxd5 {[%clk 0:00:28.5]} 23. Bf3 {[%clk 0:01:24.3]} 23... Rf8 {[%clk
0:00:25]} 24. Rxd5 {[%clk 0:01:10.9]} 24... exd5 {[%clk 0:00:25.9]} 25. Bxd5+
{[%clk 0:01:10]} 1-0

[Event "Late-Titled-Tuesday-Blitz-October-24-2023"]
[Site "Chess.com"]
[Date "2023.10.24"]
[Round "4"]
[White "ArturoCaceres"]
[Black "Nikita_Klepikov"]
[Result "0-1"]
[WhiteElo "2481"]
[BlackElo "2339"]
[TimeControl "180+1"]
[EndTime "14:38:30 PDT"]
[Termination "Nikita_Klepikov won by resignation"]

1. d4 {[%clk 0:03:00.9]} 1... Nf6 {[%clk 0:02:59.1]} 2. Nf3 {[%clk 0:03:01.8]}
2... g6 {[%clk 0:02:56.9]} 3. e3 {[%clk 0:03:02.5]} 3... Bg7 {[%clk 0:02:57.1]}
4. b3 {[%clk 0:03:03.4]} 4... O-O {[%clk 0:02:57.5]} 5. Bb2 {[%clk 0:03:04.3]}
5... b6 {[%clk 0:02:57.8]} 6. Nbd2 {[%clk 0:03:05.2]} 6... Bb7 {[%clk
0:02:58.4]} 7. Bd3 {[%clk 0:03:05.9]} 7... d6 {[%clk 0:02:58.7]} 8. O-O {[%clk
0:03:06.5]} 8... c5 {[%clk 0:02:58.6]} 9. c4 {[%clk 0:03:05.6]} 9... e6 {[%clk
0:02:57.8]} 10. e4 {[%clk 0:03:03.9]} 10... cxd4 {[%clk 0:02:56]} 11. Nxd4
{[%clk 0:03:04.8]} 11... Nbd7 {[%clk 0:02:55.2]} 12. Nb5 {[%clk 0:03:02.3]}
12... Nc5 {[%clk 0:02:54.7]} 13. Bc2 {[%clk 0:03:01.7]} 13... a6 {[%clk
0:02:46.4]} 14. Nc3 {[%clk 0:02:56.7]} 14... Nfxe4 {[%clk 0:02:41.3]} 15. Ndxe4
{[%clk 0:02:52.7]} 15... Nxe4 {[%clk 0:02:39.1]} 16. Bxe4 {[%clk 0:02:47.5]}
16... Bxe4 {[%clk 0:02:38.6]} 17. Nxe4 {[%clk 0:02:48.4]} 17... Bxb2 {[%clk
0:02:38.8]} 18. Rb1 {[%clk 0:02:49.3]} 18... d5 {[%clk 0:02:21.5]} 19. cxd5
{[%clk 0:02:41.6]} 19... Qxd5 {[%clk 0:02:06.9]} 20. Rxb2 {[%clk 0:01:54.3]}
20... Qxe4 {[%clk 0:02:06.3]} 21. Qd6 {[%clk 0:01:54.5]} 21... b5 {[%clk
0:01:56.2]} 22. Rd2 {[%clk 0:01:54.4]} 22... Rfd8 {[%clk 0:01:45.5]} 23. Qxd8+
{[%clk 0:01:48.7]} 23... Rxd8 {[%clk 0:01:46.4]} 24. Rxd8+ {[%clk 0:01:48.7]}
24... Kg7 {[%clk 0:01:47.2]} 25. Rd2 {[%clk 0:01:49.4]} 25... a5 {[%clk
0:01:39.9]} 26. Rfd1 {[%clk 0:01:48.9]} 26... a4 {[%clk 0:01:40.3]} 27. bxa4
{[%clk 0:01:47.4]} 27... Qxa4 {[%clk 0:01:38.7]} 28. Rb1 {[%clk 0:01:45.4]}
28... e5 {[%clk 0:01:28.9]} 29. h3 {[%clk 0:01:42.7]} 29... e4 {[%clk
0:01:29.2]} 30. Rb3 {[%clk 0:01:40.9]} 30... f5 {[%clk 0:01:15.2]} 31. Rdb2
{[%clk 0:01:40.9]} 31... f4 {[%clk 0:01:11.1]} 32. Rxb5 {[%clk 0:01:28.4]} 32...
e3 {[%clk 0:00:57.5]} 33. Rb7+ {[%clk 0:01:24.8]} 33... Kh6 {[%clk 0:00:55.7]}
34. fxe3 {[%clk 0:01:21.4]} 34... fxe3 {[%clk 0:00:46.4]} 35. Re7 {[%clk
0:01:17.2]} 35... Qd1+ {[%clk 0:00:40.2]} 36. Kh2 {[%clk 0:01:16.5]} 36... Qd6+
{[%clk 0:00:40.7]} 37. g3 {[%clk 0:01:07]} 37... Qxe7 {[%clk 0:00:39.4]} 38. Re2
{[%clk 0:01:07.9]} 38... Qe4 {[%clk 0:00:33.6]} 0-1

[Event "Late-Titled-Tuesday-Blitz-October-24-2023"]
[Site "Chess.com"]
[Date "2023.10.24"]
[Round "4"]
[White "WindWhistler11"]
[Black "TheMagician"]
[Result "1-0"]
[WhiteElo "2433"]
[BlackElo "2170"]
[TimeControl "180+1"]
[EndTime "14:38:31 PDT"]
[Termination "WindWhistler11 won on time"]

1. Nf3 {[%clk 0:02:59.5]} 1... d5 {[%clk 0:02:59]} 2. d3 {[%clk 0:02:59.2]} 2...
c5 {[%clk 0:02:54.4]} 3. g3 {[%clk 0:02:59.4]} 3... Nc6 {[%clk 0:02:54.2]} 4.
Bg2 {[%clk 0:02:59]} 4... e5 {[%clk 0:02:54.8]} 5. Nbd2 {[%clk 0:02:59.3]} 5...
f6 {[%clk 0:02:55.2]} 6. e4 {[%clk 0:02:59.6]} 6... Be6 {[%clk 0:02:53.4]} 7. a3
{[%clk 0:02:59.4]} 7... d4 {[%clk 0:02:36]} 8. Nh4 {[%clk 0:02:43.2]} 8... Bd6
{[%clk 0:02:32.7]} 9. Nf5 {[%clk 0:02:39.6]} 9... Qd7 {[%clk 0:02:26]} 10. Nc4
{[%clk 0:02:35.6]} 10... Bc7 {[%clk 0:02:24.1]} 11. Qg4 {[%clk 0:02:31.9]} 11...
g6 {[%clk 0:02:19.5]} 12. Ng7+ {[%clk 0:02:31.7]} 12... Kf7 {[%clk 0:01:51.2]}
13. Nxe6 {[%clk 0:02:29.3]} 13... Qxe6 {[%clk 0:01:51.4]} 14. Qe2 {[%clk
0:02:29.9]} 14... b5 {[%clk 0:01:45]} 15. Nd2 {[%clk 0:02:30]} 15... h5 {[%clk
0:01:44]} 16. h4 {[%clk 0:02:23.3]} 16... Qe8 {[%clk 0:01:29.6]} 17. Bh3 {[%clk
0:02:22.7]} 17... Nge7 {[%clk 0:01:26.2]} 18. O-O {[%clk 0:02:22.5]} 18... a6
{[%clk 0:01:22.4]} 19. Kh1 {[%clk 0:02:15.3]} 19... g5 {[%clk 0:01:17.2]} 20.
hxg5 {[%clk 0:02:09.8]} 20... fxg5 {[%clk 0:01:17.4]} 21. Nf3 {[%clk 0:02:10.4]}
21... g4 {[%clk 0:01:14.2]} 22. Ng5+ {[%clk 0:02:08]} 22... Kg6 {[%clk
0:00:58.7]} 23. Bg2 {[%clk 0:02:05]} 23... Ng8 {[%clk 0:00:49.4]} 24. f4 {[%clk
0:02:02.7]} 24... h4 {[%clk 0:00:26.8]} 25. Qxg4 {[%clk 0:02:00.2]} 25... Nh6
{[%clk 0:00:13.9]} 26. Qf3 {[%clk 0:01:32]} 26... hxg3 {[%clk 0:00:06.5]} 27.
f5+ {[%clk 0:01:18.1]} 27... Kf6 {[%clk 0:00:02.1]} 28. Bh3 {[%clk 0:01:16.3]}
1-0

[Event "Late-Titled-Tuesday-Blitz-October-24-2023"]
[Site "Chess.com"]
[Date "2023.10.24"]
[Round "4"]
[White "TigrVShlyape"]
[Black "meoluoi91"]
[Result "1-0"]
[WhiteElo "2836"]
[BlackElo "2594"]
[TimeControl "180+1"]
[EndTime "14:38:35 PDT"]
[Termination "TigrVShlyape won by resignation"]

1. d4 {[%clk 0:03:00.9]} 1... d5 {[%clk 0:02:59.8]} 2. Bf4 {[%clk 0:03:00.2]}
2... c5 {[%clk 0:02:54.9]} 3. e3 {[%clk 0:03:00]} 3... cxd4 {[%clk 0:02:54]} 4.
exd4 {[%clk 0:02:59.9]} 4... Nc6 {[%clk 0:02:54.7]} 5. c3 {[%clk 0:03:00]} 5...
Nf6 {[%clk 0:02:52.4]} 6. Nd2 {[%clk 0:02:59.8]} 6... Bf5 {[%clk 0:02:51.5]} 7.
Ngf3 {[%clk 0:02:59.7]} 7... e6 {[%clk 0:02:51.7]} 8. Bb5 {[%clk 0:02:59.8]}
8... Bd6 {[%clk 0:02:50.7]} 9. Bxd6 {[%clk 0:02:58.7]} 9... Qxd6 {[%clk
0:02:50.7]} 10. O-O {[%clk 0:02:59.3]} 10... O-O {[%clk 0:02:50.7]} 11. Re1
{[%clk 0:02:59.6]} 11... Ne4 {[%clk 0:02:36.2]} 12. Nxe4 {[%clk 0:02:57.6]}
12... Bxe4 {[%clk 0:02:36.4]} 13. Nd2 {[%clk 0:02:55.4]} 13... Bg6 {[%clk
0:02:35.6]} 14. a4 {[%clk 0:02:55]} 14... Rac8 {[%clk 0:02:30.6]} 15. a5 {[%clk
0:02:53.4]} 15... a6 {[%clk 0:02:18.6]} 16. Bf1 {[%clk 0:02:48.9]} 16... Rc7
{[%clk 0:02:06.2]} 17. Nb3 {[%clk 0:02:47.9]} 17... e5 {[%clk 0:02:00.5]} 18.
dxe5 {[%clk 0:02:46.4]} 18... Nxe5 {[%clk 0:02:00.8]} 19. Nd4 {[%clk 0:02:44.6]}
19... Nc4 {[%clk 0:01:54.5]} 20. Bxc4 {[%clk 0:02:43.4]} 20... dxc4 {[%clk
0:01:54.5]} 21. Qf3 {[%clk 0:02:30.8]} 21... h6 {[%clk 0:01:47.3]} 22. h4 {[%clk
0:02:30.1]} 22... Qc5 {[%clk 0:01:46.8]} 23. g3 {[%clk 0:02:25.7]} 23... Rd8
{[%clk 0:01:40.6]} 24. Re3 {[%clk 0:02:22.5]} 24... Re7 {[%clk 0:01:22.3]} 25.
Rae1 {[%clk 0:02:21.4]} 25... Rxe3 {[%clk 0:01:21.4]} 26. Rxe3 {[%clk
0:02:21.5]} 26... Qc7 {[%clk 0:01:16.8]} 27. h5 {[%clk 0:02:20.3]} 27... Bd3
{[%clk 0:01:15.8]} 28. b4 {[%clk 0:02:12.7]} 28... Qd7 {[%clk 0:01:03.3]} 29.
Re5 {[%clk 0:02:07.9]} 29... Qc7 {[%clk 0:00:28.4]} 30. Qe3 {[%clk 0:02:04.1]}
30... Qd7 {[%clk 0:00:27.8]} 31. Kg2 {[%clk 0:01:59.9]} 31... Bb1 {[%clk
0:00:25.3]} 32. f3 {[%clk 0:01:58]} 32... Qa4 {[%clk 0:00:18]} 33. g4 {[%clk
0:01:55.2]} 33... Qa2+ {[%clk 0:00:16]} 34. Kg3 {[%clk 0:01:54.9]} 34... Qa4
{[%clk 0:00:14.5]} 35. Re7 {[%clk 0:01:53.2]} 35... Rd7 {[%clk 0:00:14.2]} 36.
Re8+ {[%clk 0:01:49.6]} 36... Kh7 {[%clk 0:00:14.6]} 37. Qe1 {[%clk 0:01:46.2]}
37... Bd3 {[%clk 0:00:14.2]} 38. Rf8 {[%clk 0:01:39.9]} 38... Qa2 {[%clk
0:00:13.4]} 39. Qe8 {[%clk 0:01:38.7]} 39... g5 {[%clk 0:00:09]} 40. Qxd7 {[%clk
0:01:33]} 1-0

[Event "Late-Titled-Tuesday-Blitz-October-24-2023"]
[Site "Chess.com"]
[Date "2023.10.24"]
[Round "4"]
[White "IMRosen"]
[Black "maximnovik"]
[Result "0-1"]
[WhiteElo "2618"]
[BlackElo "2499"]
[TimeControl "180+1"]
[EndTime "14:38:37 PDT"]
[Termination "maximnovik won on time"]

1. e4 {[%clk 0:03:00.9]} 1... c6 {[%clk 0:02:59.9]} 2. d4 {[%clk 0:03:00.5]}
2... d5 {[%clk 0:03:00.8]} 3. Nc3 {[%clk 0:03:01.2]} 3... dxe4 {[%clk
0:03:01.1]} 4. Nxe4 {[%clk 0:03:02.1]} 4... Bf5 {[%clk 0:03:01.7]} 5. Ng3 {[%clk
0:03:01.9]} 5... Bg6 {[%clk 0:03:01.9]} 6. h4 {[%clk 0:03:02.6]} 6... h6 {[%clk
0:03:02.1]} 7. Nf3 {[%clk 0:03:03.2]} 7... e6 {[%clk 0:03:02.5]} 8. Ne5 {[%clk
0:03:03.4]} 8... Bh7 {[%clk 0:03:02.6]} 9. Bd3 {[%clk 0:03:02.7]} 9... Bxd3
{[%clk 0:03:02.9]} 10. Qxd3 {[%clk 0:03:03.4]} 10... Nd7 {[%clk 0:03:03.4]} 11.
f4 {[%clk 0:03:01.2]} 11... Be7 {[%clk 0:03:03.6]} 12. Bd2 {[%clk 0:02:34.6]}
12... Nxe5 {[%clk 0:02:59.7]} 13. fxe5 {[%clk 0:02:34.3]} 13... Bxh4 {[%clk
0:02:59.9]} 14. O-O-O {[%clk 0:02:33.6]} 14... Bxg3 {[%clk 0:02:59.9]} 15. Qxg3
{[%clk 0:02:32]} 15... Ne7 {[%clk 0:03:00.8]} 16. Qxg7 {[%clk 0:02:20.8]} 16...
Rg8 {[%clk 0:03:00.6]} 17. Qxh6 {[%clk 0:02:20.1]} 17... Qd5 {[%clk 0:02:57.4]}
18. Kb1 {[%clk 0:01:41.5]} 18... O-O-O {[%clk 0:02:55.7]} 19. Qf6 {[%clk
0:01:28.9]} 19... Nf5 {[%clk 0:02:49]} 20. Qxf7 {[%clk 0:01:28.5]} 20... Rg7
{[%clk 0:02:42.5]} 21. Qf6 {[%clk 0:01:22.4]} 21... Rdg8 {[%clk 0:02:30.9]} 22.
Bc1 {[%clk 0:00:51.2]} 22... Qd7 {[%clk 0:02:27.7]} 23. a4 {[%clk 0:00:31.6]}
23... Rg6 {[%clk 0:02:22]} 24. Rh8 {[%clk 0:00:31.3]} 24... Qe8 {[%clk
0:02:16.1]} 25. Rxg8 {[%clk 0:00:10.5]} 25... Qxg8 {[%clk 0:02:16.1]} 26. g4
{[%clk 0:00:03]} 26... Rxf6 {[%clk 0:02:14]} 27. exf6 {[%clk 0:00:03.9]} 27...
Qxg4 {[%clk 0:02:08.9]} 28. Re1 {[%clk 0:00:03.5]} 28... Nd6 {[%clk 0:02:07.1]}
29. b3 {[%clk 0:00:02]} 29... Kd7 {[%clk 0:02:04.8]} 30. Ba3 {[%clk 0:00:02.2]}
30... Nf7 {[%clk 0:02:04.4]} 31. Rh1 {[%clk 0:00:02]} 31... Qf5 {[%clk 0:02:04]}
32. Be7 {[%clk 0:00:01.7]} 32... b6 {[%clk 0:02:01.7]} 33. Rc1 {[%clk
0:00:02.2]} 33... c5 {[%clk 0:01:57.8]} 34. dxc5 {[%clk 0:00:03.1]} 34... bxc5
{[%clk 0:01:57.9]} 35. Rd1+ {[%clk 0:00:03.2]} 35... Kc6 {[%clk 0:01:57.9]} 36.
Kb2 {[%clk 0:00:03.8]} 36... c4 {[%clk 0:01:55]} 37. bxc4 {[%clk 0:00:03]} 37...
a5 {[%clk 0:01:52.9]} 38. Rd3 {[%clk 0:00:02.4]} 38... e5 {[%clk 0:01:51.1]} 39.
Rc3 {[%clk 0:00:01.8]} 39... e4 {[%clk 0:01:50.1]} 40. c5 {[%clk 0:00:01.9]}
40... Qe5 {[%clk 0:01:48.3]} 41. Kb3 {[%clk 0:00:01.6]} 41... e3 {[%clk
0:01:48.2]} 42. Rd3 {[%clk 0:00:01.8]} 42... e2 {[%clk 0:01:47.1]} 43. Bd6
{[%clk 0:00:02.4]} 43... Qe6+ {[%clk 0:01:46.6]} 0-1

[Event "Late-Titled-Tuesday-Blitz-October-24-2023"]
[Site "Chess.com"]
[Date "2023.10.24"]
[Round "4"]
[White "Tunahan_Makaraci"]
[Black "lukas_111111"]
[Result "0-1"]
[WhiteElo "2421"]
[BlackElo "2642"]
[TimeControl "180+1"]
[EndTime "14:38:40 PDT"]
[Termination "lukas_111111 won on time"]

1. e4 {[%clk 0:03:00.6]} 1... d6 {[%clk 0:02:58.9]} 2. d4 {[%clk 0:03:00.6]}
2... Nf6 {[%clk 0:02:59]} 3. Nc3 {[%clk 0:03:00.6]} 3... e5 {[%clk 0:02:59.1]}
4. Nge2 {[%clk 0:03:00.1]} 4... exd4 {[%clk 0:02:57.7]} 5. Nxd4 {[%clk
0:02:57.4]} 5... Be7 {[%clk 0:02:54.5]} 6. h3 {[%clk 0:02:54.5]} 6... O-O {[%clk
0:02:52]} 7. g4 {[%clk 0:02:54.5]} 7... d5 {[%clk 0:02:51.4]} 8. Bg2 {[%clk
0:02:49.3]} 8... Nxe4 {[%clk 0:02:49.6]} 9. Nxe4 {[%clk 0:02:48.9]} 9... dxe4
{[%clk 0:02:49.5]} 10. O-O {[%clk 0:02:45.7]} 10... Bf6 {[%clk 0:02:35.3]} 11.
c3 {[%clk 0:02:38.8]} 11... Bxd4 {[%clk 0:02:32.2]} 12. cxd4 {[%clk 0:02:38.5]}
12... f5 {[%clk 0:02:31.6]} 13. g5 {[%clk 0:02:32.1]} 13... Be6 {[%clk
0:02:29.8]} 14. Bf4 {[%clk 0:02:31.6]} 14... Nc6 {[%clk 0:02:29.8]} 15. Rc1
{[%clk 0:02:24.2]} 15... Qxd4 {[%clk 0:02:25.1]} 16. Qe2 {[%clk 0:01:56.7]}
16... Ne5 {[%clk 0:02:13.7]} 17. Rxc7 {[%clk 0:01:50.7]} 17... Nd3 {[%clk
0:02:11.8]} 18. Be3 {[%clk 0:01:46.6]} 18... Qe5 {[%clk 0:02:10.6]} 19. Rxb7
{[%clk 0:01:41.6]} 19... f4 {[%clk 0:02:10.4]} 20. Bd2 {[%clk 0:00:54.2]} 20...
f3 {[%clk 0:02:05.4]} 21. Qe3 {[%clk 0:00:31.1]} 21... fxg2 {[%clk 0:02:04.4]}
22. Kxg2 {[%clk 0:00:28.5]} 22... Nf4+ {[%clk 0:02:01.3]} 23. Kh1 {[%clk
0:00:25.2]} 23... Nd5 {[%clk 0:01:46.3]} 24. Qc5 {[%clk 0:00:19.5]} 24... Qf5
{[%clk 0:01:42.4]} 25. Qd4 {[%clk 0:00:12]} 25... Qxh3+ {[%clk 0:01:41.6]} 26.
Kg1 {[%clk 0:00:11.7]} 26... Qg4+ {[%clk 0:01:41.6]} 27. Kh1 {[%clk 0:00:10.5]}
27... Rf7 {[%clk 0:01:22.2]} 28. Rxf7 {[%clk 0:00:09.9]} 28... Bxf7 {[%clk
0:01:21.7]} 29. Re1 {[%clk 0:00:08.3]} 29... Qf3+ {[%clk 0:01:18.8]} 30. Kg1
{[%clk 0:00:08.2]} 30... Re8 {[%clk 0:01:18.2]} 0-1

[Event "Late-Titled-Tuesday-Blitz-October-24-2023"]
[Site "Chess.com"]
[Date "2023.10.24"]
[Round "4"]
[White "eCztery"]
[Black "sergeikim"]
[Result "0-1"]
[WhiteElo "2375"]
[BlackElo "2594"]
[TimeControl "180+1"]
[EndTime "14:38:40 PDT"]
[Termination "sergeikim won on time"]

1. e4 {[%clk 0:02:08]} 1... e5 {[%clk 0:02:58.8]} 2. Nf3 {[%clk 0:02:06.9]} 2...
Nc6 {[%clk 0:02:58.7]} 3. d4 {[%clk 0:02:07.2]} 3... exd4 {[%clk 0:02:58.1]} 4.
Bc4 {[%clk 0:02:08.1]} 4... Nf6 {[%clk 0:02:57.5]} 5. O-O {[%clk 0:02:08.3]}
5... Nxe4 {[%clk 0:02:56.7]} 6. Nc3 {[%clk 0:02:08.5]} 6... Nxc3 {[%clk
0:02:55.1]} 7. bxc3 {[%clk 0:02:08.7]} 7... d5 {[%clk 0:02:55.8]} 8. Bb5 {[%clk
0:02:08.3]} 8... Be7 {[%clk 0:02:55.5]} 9. Ne5 {[%clk 0:01:59.5]} 9... Bd7
{[%clk 0:02:54.8]} 10. Nxd7 {[%clk 0:01:59.1]} 10... Qxd7 {[%clk 0:02:54.8]} 11.
Re1 {[%clk 0:01:59.3]} 11... O-O {[%clk 0:02:54.3]} 12. cxd4 {[%clk 0:01:58.4]}
12... Bd6 {[%clk 0:02:52.4]} 13. c3 {[%clk 0:01:53.1]} 13... Rfe8 {[%clk
0:02:46.8]} 14. Be3 {[%clk 0:01:36]} 14... Qf5 {[%clk 0:02:32.3]} 15. Rb1 {[%clk
0:01:30.7]} 15... Qf6 {[%clk 0:02:21.7]} 16. Qh5 {[%clk 0:00:10.4]} 16... h6
{[%clk 0:02:07]} 17. Bd3 {[%clk 0:00:08.3]} 17... Rab8 {[%clk 0:01:59.4]} 18. h3
{[%clk 0:00:07.7]} 18... a6 {[%clk 0:01:49.1]} 19. Bd2 {[%clk 0:00:07.9]} 19...
Ne7 {[%clk 0:01:41.7]} 20. a4 {[%clk 0:00:06.5]} 20... Bf4 {[%clk 0:01:34.3]}
21. Bxf4 {[%clk 0:00:04.8]} 21... Qxf4 {[%clk 0:01:34]} 22. Re3 {[%clk
0:00:05.6]} 22... g6 {[%clk 0:01:26.4]} 23. Qe2 {[%clk 0:00:05.2]} 23... Kf8
{[%clk 0:01:22]} 24. Re1 {[%clk 0:00:05.3]} 24... Qd6 {[%clk 0:01:20.2]} 25. Qf3
{[%clk 0:00:04]} 25... c6 {[%clk 0:01:11.6]} 26. Re6 {[%clk 0:00:03.7]} 26...
Qd7 {[%clk 0:01:07.6]} 27. Qf6 {[%clk 0:00:01.5]} 27... Ng8 {[%clk 0:01:03.2]}
0-1

[Event "Late-Titled-Tuesday-Blitz-October-24-2023"]
[Site "Chess.com"]
[Date "2023.10.24"]
[Round "4"]
[White "Yushko_Olga"]
[Black "DonJuanEGenaro"]
[Result "0-1"]
[WhiteElo "2126"]
[BlackElo "1852"]
[TimeControl "180+1"]
[EndTime "14:38:40 PDT"]
[Termination "DonJuanEGenaro won by resignation"]

1. d4 {[%clk 0:03:00]} 1... d5 {[%clk 0:02:59.4]} 2. c4 {[%clk 0:03:00.3]} 2...
e6 {[%clk 0:02:59.6]} 3. cxd5 {[%clk 0:03:00.8]} 3... exd5 {[%clk 0:02:59.2]} 4.
Nc3 {[%clk 0:03:01.7]} 4... c6 {[%clk 0:02:59.3]} 5. Nf3 {[%clk 0:03:02.6]} 5...
Nf6 {[%clk 0:02:58.7]} 6. Bg5 {[%clk 0:03:03.2]} 6... h6 {[%clk 0:02:58.2]} 7.
e3 {[%clk 0:03:03.3]} 7... hxg5 {[%clk 0:02:56.8]} 8. Nxg5 {[%clk 0:03:02.8]}
8... Bb4 {[%clk 0:02:52.7]} 9. Bd3 {[%clk 0:02:57.6]} 9... Qe7 {[%clk
0:02:46.7]} 10. Qc2 {[%clk 0:02:50.8]} 10... b5 {[%clk 0:02:20.9]} 11. O-O-O
{[%clk 0:02:44.7]} 11... a5 {[%clk 0:02:19.7]} 12. Nxb5 {[%clk 0:02:39.2]} 12...
Bg4 {[%clk 0:02:02.4]} 13. f3 {[%clk 0:02:35]} 13... Be6 {[%clk 0:01:42.7]} 14.
Nxe6 {[%clk 0:02:30.3]} 14... fxe6 {[%clk 0:01:40.8]} 15. Bg6+ {[%clk
0:02:29.6]} 15... Kd7 {[%clk 0:01:40.2]} 16. Nc3 {[%clk 0:02:23.8]} 16... Ne8
{[%clk 0:01:30.6]} 17. Kb1 {[%clk 0:02:18.2]} 17... Nd6 {[%clk 0:01:29.4]} 18.
e4 {[%clk 0:02:16.4]} 18... Qg5 {[%clk 0:01:22.7]} 19. exd5 {[%clk 0:02:12.5]}
19... cxd5 {[%clk 0:01:17.3]} 20. g3 {[%clk 0:01:58.6]} 20... Nc6 {[%clk
0:01:14.2]} 21. Na4 {[%clk 0:01:40.1]} 21... Nc4 {[%clk 0:01:06.8]} 22. Bd3
{[%clk 0:01:33.8]} 22... Nxd4 {[%clk 0:01:05.7]} 23. Qf2 {[%clk 0:01:27]} 23...
Ne3 {[%clk 0:01:04]} 24. f4 {[%clk 0:01:21.8]} 24... Nxd1 {[%clk 0:01:02.8]} 25.
Rxd1 {[%clk 0:01:19.1]} 25... Qf6 {[%clk 0:01:00.3]} 26. Nb6+ {[%clk 0:01:15.8]}
26... Kd6 {[%clk 0:00:58.7]} 27. Nxa8 {[%clk 0:01:15.4]} 27... Rxa8 {[%clk
0:00:58.1]} 28. Bf1 {[%clk 0:01:09.6]} 28... Bc5 {[%clk 0:00:57.2]} 29. Qd2
{[%clk 0:01:05.2]} 29... Rb8 {[%clk 0:00:55.5]} 30. Qxa5 {[%clk 0:00:56.1]}
30... Rxb2+ {[%clk 0:00:55]} 31. Kc1 {[%clk 0:00:49.3]} 31... Ne2+ {[%clk
0:00:48.9]} 32. Bxe2 {[%clk 0:00:47.5]} 32... Be3+ {[%clk 0:00:45]} 33. Rd2
{[%clk 0:00:45.9]} 33... Bxd2+ {[%clk 0:00:41]} 0-1